fUST/lending_fUST_20240328
["ID","MTS","AMOUNT","RATE_DAILY","PERIOD"]
[320842902,1711615838152,-980.9878,0.0007568,90]
[320842903,1711615838162,-1861.0994072,0.0007575,120]
[320842904,1711615838174,-160.0,0.00075789,90]
[320842905,1711615838184,-243.81310418,0.00075789,120]
[320842906,1711615838194,-348.73394197,0.00075789,120]
[320842907,1711615838203,-1537.35248464,0.0007579,61]
[320842908,1711615838212,-8685.37764054,0.0007579,2]
[320842957,1711615840155,-2388.80527555,0.0007579,2]
[320843005,1711615843430,-986.02977792,0.0007579,2]
[320843182,1711615846116,-286.71145569,0.00075789,7]
[320843183,1711615846126,-3098.10400597,0.0007579,2]
[320843202,1711616059739,19850.0,0.0001999,2]
[320843203,1711616059767,11348.55490377,0.0001999,2]
[320843204,1711616076524,252.59409701,0.0003,2]
[320843206,1711616482198,154.98450155,0.00036479,4]
[320843209,1711616973137,-150.96980604,0.0006343,2]
[320843210,1711616973158,-176.50964468,0.0006441,12]
[320843211,1711616973180,-301.93961208,0.00064496,4]
[320843212,1711616973201,-1578.10478545,0.00064999,7]
[320843283,1711617032840,-5062.80447504,0.00036452,2]
[320843285,1711617032850,-1824.95610455,0.00064999,7]
[320843286,1711617032863,-335.83781907,0.00064999,7]
[320843287,1711617032873,-544.07846994,0.00065,120]
[320843288,1711617032882,-300.0,0.00069293,120]
[320843289,1711617032892,-1370.38,0.00069294,2]
[320843290,1711617032901,-10549.92663909,0.0007,2]
[320843291,1711617032911,-3000.0,0.00070973,120]
[320843292,1711617032921,-2926.20996857,0.000711,120]
[320843293,1711617032931,-6178.65,0.00072798,120]
[320843294,1711617032941,-171.99052288,0.00073596,7]
[320843295,1711617032952,-967.0,0.000745,30]
[320843297,1711617032962,-4282.31187495,0.00074595,7]
[320843299,1711617032971,-174.40645698,0.00074932,2]
[320843301,1711617032981,-5600.0,0.00075,120]
[320843303,1711617032990,-411.87042198,0.00075,120]
[320843305,1711617033000,-4297.53996218,0.00075,14]
[320843307,1711617033010,-159.19863407,0.00075032,120]
[320843309,1711617033023,-1000.0,0.00075788,2]
[320843311,1711617033033,-1506.61583803,0.00075788,120]
[320843313,1711617033043,-334.15692484,0.00075788,7]
[320843315,1711617033054,-428.98249269,0.00075788,7]
[320843317,1711617033066,-192.90610468,0.00075788,7]
[320843319,1711617033075,-1000.0,0.00075789,5]
[320843320,1711617033085,-1000.0,0.00075789,8]
[320843322,1711617033098,-1000.0,0.00075789,11]
[320843324,1711617033110,-1000.0,0.00075789,14]
[320843326,1711617033119,-1000.0,0.00075789,17]
[320843328,1711617033130,-620.00307247,0.00075789,120]
[320843329,1711617033140,-187.17072048,0.00075789,7]
[320843331,1711617033149,-578.57820143,0.00075789,7]
[320843332,1711617033160,-167.46939206,0.00075789,7]
[320843333,1711617033170,-27258.70291436,0.0007579,2]
[320843334,1711617033184,-2546.15423993,0.0007579,2]
[320843353,1711617038199,-8966.9286095,0.0007579,2]
[320843354,1711617038257,-23186.44428547,0.0007579,2]
[320843364,1711617040328,-503.01188397,0.0007579,2]
[320843396,1711617043649,-798.7435086,0.0007579,2]
[320843397,1711617043662,-409.910339,0.0007579,2]
[320843398,1711617043674,-1685.86924913,0.0007579,2]
[320843407,1711617543862,6810.0,0.0003641,30]
[320843408,1711617692464,155.00310006,0.00036399,4]
[320843409,1711617728117,155.00310006,0.00036399,4]
[320843410,1711617787879,1714.71572363,0.0004,3]
[320843411,1711617957836,13194.4788174,0.0004,120]
[320843467,1711618232749,-151.0,0.000364,2]
[320843470,1711618232759,-2492.59913938,0.00039999,4]
[320843472,1711618232768,-24917.73191925,0.0004,120]
[320843475,1711618232779,-162.44800869,0.000609,14]
[320843478,1711618232787,-1724.79559284,0.00061,4]
[320843505,1711618238431,-2774.91224958,0.00061,4]
[320843506,1711618238445,-5404.81215758,0.00061,4]
[320843507,1711618238455,-3000.0,0.00065424,120]
[320843508,1711618238464,-599.38012392,0.00066,4]
[320843509,1711618238485,-726.88,0.00066,4]
[320843535,1711618243560,-0.01036775,0.00066,4]
[320843546,1711618244016,-2817.66980942,0.00066,4]
[320843564,1711618246584,-457.71466524,0.00066,4]
[320843565,1711618246598,-280.69234699,0.00066,4]
[320843584,1711619432663,-316.59136531,0.00055978,4]
[320843586,1711619432679,-1760.57458418,0.00055978,4]
[320843588,1711619432688,-2417.97152164,0.00055979,4]
[320843590,1711619432698,-5117.65268668,0.00056,4]
[320843592,1711619432707,-192.0,0.0006,2]
[320843594,1711619432718,-17000.0,0.00061,4]
[320843596,1711619432727,-3000.0,0.00061185,120]
[320843598,1711619432736,-22959.5219288,0.00062085,2]
[320843600,1711619432746,-2121.0,0.00065,120]
[320843602,1711619432755,-208.31732449,0.00065653,2]
[320843604,1711619432765,-500.0,0.00065753,120]
[320843606,1711619432776,-179.252085,0.00067726,2]
[320843608,1711619432786,-208.31732446,0.0006796,2]
[320843610,1711619432795,-4003.5234436,0.00069,30]
[320843612,1711619432804,-6397.83531522,0.0007,120]
[320843614,1711619432814,-208.31732446,0.00070267,2]
[320843616,1711619432823,-49822.74848251,0.000711,120]
[320843633,1711619438624,-355.36,0.000711,120]
[320843636,1711619440691,-592.87397604,0.000711,120]
[320843637,1711619440703,-9326.7357867,0.000711,120]
[320843639,1711619440789,-1000.0,0.00071471,2]
[320843640,1711619440823,-942.72154942,0.00071471,120]
[320843641,1711619440833,-1003.0,0.00072,120]
[320843642,1711619440842,-208.31732446,0.00072573,2]
[320843643,1711619440853,-500.0,0.000729,120]
[320843644,1711619440863,-400.0,0.00073,4]
[320843645,1711619440873,-500.0,0.000739,120]
[320843646,1711619440883,-500.36401234,0.000739,30]
[320843647,1711619440893,-2121.0,0.00074,120]
[320843648,1711619440903,-1000.0,0.00074799,5]
[320843649,1711619440912,-26171.08046372,0.000748,120]
[320843650,1711619440922,-2270.73452396,0.00074833,7]
[320843651,1711619440932,-768.67624232,0.00074834,61]
[320843652,1711619440941,-380.02827594,0.00074834,120]
[320843653,1711619440950,-500.0,0.00074834,120]
[320843654,1711619440960,-500.0,0.00074834,120]
[320843655,1711619440969,-403.94313535,0.00074834,120]
[320843656,1711619440979,-1000.0,0.00074834,8]
[320843657,1711619440989,-27147.68363878,0.00074835,120]
[320843658,1711619440999,-308.953754,0.00074835,120]
[320843659,1711619441010,-308.953754,0.00074835,120]
[320843660,1711619441019,-308.953754,0.00074835,120]
[320843661,1711619441029,-308.953754,0.00074835,120]
[320843662,1711619441038,-308.953754,0.00074835,120]
[320843663,1711619441047,-308.953754,0.00074835,120]
[320843664,1711619441056,-2176.147815,0.00074835,120]
[320843665,1711619441065,-2176.147815,0.00074835,120]
[320843666,1711619441074,-2176.147815,0.00074835,120]
[320843667,1711619441083,-2176.147815,0.00074835,120]
[320843668,1711619441093,-2038.9543969,0.00074835,120]
[320843669,1711619441105,-137.1934181,0.00074835,120]
[320843670,1711619441115,-902.34159882,0.00074835,120]
[320843671,1711619441127,-1273.80621618,0.00074835,120]
[320843672,1711619441136,-2176.147815,0.00074835,120]
[320843673,1711619441145,-2176.147815,0.00074835,120]
[320843674,1711619441154,-151.0,0.00074835,120]
[320843675,1711619441173,-151.0,0.00074835,120]
[320843676,1711619441184,-151.0,0.00074835,120]
[320843677,1711619441194,-151.0,0.00074835,120]
[320843678,1711619441204,-151.0,0.00074835,120]
[320843679,1711619441213,-151.0,0.00074835,120]
[320843680,1711619441223,-300.331352,0.00074835,120]
[320843681,1711619441232,-739.902999,0.00074835,120]
[320843682,1711619441242,-739.902999,0.00074835,120]
[320843683,1711619441252,-739.902999,0.00074835,120]
[320843684,1711619441261,-739.902999,0.00074835,120]
[320843685,1711619441271,-739.902999,0.00074835,120]
[320843686,1711619441282,-739.902999,0.00074835,120]
[320843687,1711619441291,-739.902999,0.00074835,120]
[320843688,1711619441301,-739.902999,0.00074835,120]
[320843689,1711619441311,-152.800801,0.00074835,120]
[320843690,1711619441321,-152.800801,0.00074835,120]
[320843691,1711619441332,-152.800801,0.00074835,120]
[320843692,1711619441342,-152.800801,0.00074835,120]
[320843693,1711619441352,-152.800801,0.00074835,120]
[320843694,1711619441363,-152.800801,0.00074835,120]
[320843695,1711619441373,-152.800801,0.00074835,120]
[320843696,1711619441382,-152.800801,0.00074835,120]
[320843697,1711619441392,-152.800801,0.00074835,120]
[320843698,1711619441402,-152.800801,0.00074835,120]
[320843699,1711619441412,-151.0,0.00074835,120]
[320843700,1711619441421,-151.0,0.00074835,120]
[320843701,1711619441431,-151.317376,0.00074835,120]
[320843702,1711619441441,-764.794687,0.00074835,120]
[320843703,1711619441451,-764.794687,0.00074835,120]
[320843704,1711619441461,-764.794687,0.00074835,120]
[320843705,1711619441471,-764.794687,0.00074835,120]
[320843706,1711619441480,-764.794687,0.00074835,120]
[320843707,1711619441489,-764.794687,0.00074835,120]
[320843708,1711619441499,-764.794687,0.00074835,120]
[320843709,1711619441508,-764.794687,0.00074835,120]
[320843710,1711619441517,-764.794687,0.00074835,120]
[320843711,1711619441527,-764.794687,0.00074835,120]
[320843712,1711619441536,-764.794687,0.00074835,120]
[320843713,1711619441546,-764.794687,0.00074835,120]
[320843714,1711619441555,-151.0,0.00074835,120]
[320843715,1711619441564,-154.60727,0.00074835,120]
[320843716,1711619441574,-151.0,0.00074835,120]
[320843717,1711619441583,-151.0,0.00074835,120]
[320843718,1711619441592,-151.0,0.00074835,120]
[320843719,1711619441601,-151.0,0.00074835,120]
[320843720,1711619441611,-151.0,0.00074835,120]
[320843721,1711619441620,-151.0,0.00074835,120]
[320843722,1711619441629,-2300.256081,0.00074835,10]
[320843723,1711619441639,-2300.256081,0.00074835,10]
[320843724,1711619441648,-2300.256081,0.00074835,10]
[320843725,1711619441657,-2300.256081,0.00074835,10]
[320843726,1711619441666,-2300.256081,0.00074835,10]
[320843727,1711619441681,-2300.256081,0.00074835,10]
[320843728,1711619441690,-2300.256081,0.00074835,10]
[320843729,1711619441699,-2300.256081,0.00074835,10]
[320843730,1711619441708,-2300.256081,0.00074835,10]
[320843731,1711619441718,-2300.256081,0.00074835,10]
[320843732,1711619441727,-2300.256081,0.00074835,10]
[320843733,1711619441736,-2300.256081,0.00074835,10]
[320843734,1711619441745,-812.642124,0.00074835,120]
[320843735,1711619441756,-812.642124,0.00074835,120]
[320843736,1711619441765,-812.642124,0.00074835,120]
[320843737,1711619441774,-812.642124,0.00074835,120]
[320843738,1711619441783,-812.642124,0.00074835,120]
[320843739,1711619441792,-812.642124,0.00074835,120]
[320843740,1711619441801,-812.642124,0.00074835,120]
[320843741,1711619441810,-812.642124,0.00074835,120]
[320843742,1711619441819,-812.642124,0.00074835,120]
[320843743,1711619441828,-812.642124,0.00074835,120]
[320843744,1711619441837,-812.642124,0.00074835,120]
[320843745,1711619441849,-812.642124,0.00074835,120]
[320843746,1711619441859,-812.642124,0.00074835,120]
[320843747,1711619441870,-812.642124,0.00074835,120]
[320843748,1711619441879,-724.42172,0.00074835,120]
[320843749,1711619441889,-724.42172,0.00074835,120]
[320843750,1711619441898,-724.42172,0.00074835,120]
[320843751,1711619441907,-724.42172,0.00074835,120]
[320843752,1711619441916,-724.42172,0.00074835,120]
[320843753,1711619441926,-391.51356796,0.00074835,120]
[320843754,1711619441941,-332.90815204,0.00074835,120]
[320843755,1711619441951,-724.42172,0.00074835,120]
[320843756,1711619441962,-724.42172,0.00074835,120]
[320843757,1711619441973,-724.42172,0.00074835,120]
[320843758,1711619441983,-724.42172,0.00074835,120]
[320843759,1711619441994,-724.42172,0.00074835,120]
[320843760,1711619442005,-724.42172,0.00074835,120]
[320843761,1711619442018,-724.42172,0.00074835,120]
[320843762,1711619442029,-724.42172,0.00074835,120]
[320843763,1711619442040,-151.0,0.00074835,120]
[320843764,1711619442050,-151.0,0.00074835,120]
[320843765,1711619442060,-151.0,0.00074835,120]
[320843766,1711619442071,-151.0,0.00074835,120]
[320843767,1711619442081,-151.0,0.00074835,120]
[320843768,1711619442092,-151.0,0.00074835,120]
[320843769,1711619442102,-151.0,0.00074835,120]
[320843770,1711619442112,-151.0,0.00074835,120]
[320843771,1711619442126,-151.0,0.00074835,120]
[320843772,1711619442137,-151.0,0.00074835,120]
[320843773,1711619442146,-151.0,0.00074835,120]
[320843774,1711619442156,-151.0,0.00074835,120]
[320843775,1711619442166,-151.0,0.00074835,120]
[320843776,1711619442176,-151.0,0.00074835,120]
[320843777,1711619442186,-154.973785,0.00074835,120]
[320843778,1711619442195,-151.0,0.00074835,120]
[320843779,1711619442205,-159.665677,0.00074835,120]
[320843780,1711619442215,-208.31732446,0.0007488,2]
[320843781,1711619442225,-500.0,0.000749,120]
[320843782,1711619442235,-1000.0,0.00074979,11]
[320843783,1711619442244,-308.953754,0.0007498,120]
[320843784,1711619442254,-308.953754,0.0007498,120]
[320843785,1711619442263,-308.953754,0.0007498,120]
[320843786,1711619442272,-308.953754,0.0007498,120]
[320843787,1711619442282,-308.953754,0.0007498,120]
[320843788,1711619442290,-308.953754,0.0007498,120]
[320843789,1711619442300,-2176.147815,0.0007498,120]
[320843790,1711619442309,-2176.147815,0.0007498,120]
[320843791,1711619442318,-2176.147815,0.0007498,120]
[320843792,1711619442328,-2176.147815,0.0007498,120]
[320843793,1711619442339,-2176.147815,0.0007498,120]
[320843794,1711619442349,-2176.147815,0.0007498,120]
[320843795,1711619442359,-151.0,0.0007498,120]
[320843796,1711619442369,-151.0,0.0007498,120]
[320843797,1711619442378,-151.0,0.0007498,120]
[320843798,1711619442388,-739.902999,0.0007498,120]
[320843799,1711619442397,-739.902999,0.0007498,120]
[320843800,1711619442406,-739.902999,0.0007498,120]
[320843801,1711619442415,-739.902999,0.0007498,120]
[320843802,1711619442424,-739.902999,0.0007498,120]
[320843803,1711619442434,-739.902999,0.0007498,120]
[320843804,1711619442443,-152.800801,0.0007498,120]
[320843805,1711619442453,-152.800801,0.0007498,120]
[320843806,1711619442462,-152.800801,0.0007498,120]
[320843807,1711619442471,-152.800801,0.0007498,120]
[320843808,1711619442480,-152.800801,0.0007498,120]
[320843809,1711619442490,-152.800801,0.0007498,120]
[320843810,1711619442499,-152.800801,0.0007498,120]
[320843811,1711619442508,-152.800801,0.0007498,120]
[320843812,1711619442517,-764.794687,0.0007498,120]
[320843813,1711619442527,-764.794687,0.0007498,120]
[320843814,1711619442536,-764.794687,0.0007498,120]
[320843815,1711619442545,-764.794687,0.0007498,120]
[320843816,1711619442555,-764.794687,0.0007498,120]
[320843817,1711619442564,-764.794687,0.0007498,120]
[320843818,1711619442573,-311.0159322,0.0007498,120]
[320843819,1711619442586,-329.7518327,0.0007498,120]
[320843899,1711619443754,-124.0269221,0.0007498,120]
[320843901,1711619443763,-764.794679,0.0007498,120]
[320843903,1711619443774,-3038.96441588,0.0007498,120]
[320843905,1711619443786,-764.76670726,0.0007498,120]
[320843908,1711619443810,-2128.90706463,0.0007498,120]
[320843909,1711619443873,-119.91181223,0.0007498,120]
[320843910,1711619443882,-244.91926,0.0007498,120]
[320843911,1711619443891,-2300.256081,0.0007498,10]
[320843912,1711619443901,-2300.256081,0.0007498,10]
[320843913,1711619443910,-2300.256081,0.0007498,10]
[320843914,1711619443919,-1741.71677514,0.0007498,10]
[320843928,1711619446840,-729.67605997,0.00074834,7]
[320843929,1711619446850,-558.53930586,0.0007498,10]
[320843930,1711619446861,-2300.256081,0.0007498,10]
[320843931,1711619446871,-2300.256081,0.0007498,10]
[320843932,1711619446881,-2300.256081,0.0007498,10]
[320843933,1711619446890,-2300.256087,0.0007498,10]
[320843934,1711619446899,-812.642124,0.0007498,120]
[320843935,1711619446908,-812.642124,0.0007498,120]
[320843936,1711619446918,-812.642124,0.0007498,120]
[320843937,1711619446927,-812.642124,0.0007498,120]
[320843938,1711619446936,-812.642124,0.0007498,120]
[320843939,1711619447036,-812.642125,0.0007498,120]
[320843940,1711619447047,-724.42172,0.0007498,120]
[320843941,1711619447057,-724.42172,0.0007498,120]
[320843942,1711619447066,-724.42172,0.0007498,120]
[320843943,1711619447076,-724.42172,0.0007498,120]
[320843944,1711619447086,-724.42172,0.0007498,120]
[320843945,1711619447097,-724.421714,0.0007498,120]
[320843946,1711619447106,-151.0,0.0007498,120]
[320843947,1711619447116,-151.0,0.0007498,120]
[320843948,1711619447127,-159.19863408,0.00075032,120]
[320843949,1711619447137,-835.9130047,0.00075689,14]
[320843950,1711619447147,-308.953754,0.0007569,120]
[320843951,1711619447157,-308.953754,0.0007569,120]
[320843952,1711619447166,-308.953754,0.0007569,120]
[320843953,1711619447176,-308.953754,0.0007569,120]
[320843954,1711619447185,-308.953754,0.0007569,120]
[320843955,1711619447195,-308.953754,0.0007569,120]
[320843956,1711619447205,-2176.147815,0.0007569,120]
[320843957,1711619447214,-2176.147815,0.0007569,120]
[320843958,1711619447224,-2176.147815,0.0007569,120]
[320843959,1711619447233,-2176.147815,0.0007569,120]
[320843960,1711619447243,-2176.147815,0.0007569,120]
[320843961,1711619447252,-2176.147814,0.0007569,120]
[320843962,1711619447262,-151.0,0.0007569,120]
[320843963,1711619447272,-151.0,0.0007569,120]
[320843964,1711619447282,-151.0,0.0007569,120]
[320843965,1711619447293,-739.902999,0.0007569,120]
[320843966,1711619447302,-739.902999,0.0007569,120]
[320843967,1711619447312,-739.902999,0.0007569,120]
[320843968,1711619447321,-739.902999,0.0007569,120]
[320843969,1711619447330,-739.902999,0.0007569,120]
[320843970,1711619447340,-739.903003,0.0007569,120]
[320843971,1711619447350,-152.800801,0.0007569,120]
[320843972,1711619447359,-152.800792,0.0007569,120]
[320843973,1711619447368,-24595.24227642,0.0007569,2]
[320843974,1711619447378,-752.98993587,0.00075787,7]
[320843975,1711619447386,-308.953754,0.00075788,120]
[320843976,1711619447395,-308.95376,0.00075788,120]
[320843977,1711619447404,-155.0,0.00075788,7]
[320843978,1711619447413,-618.25603835,0.00075788,7]
[320843979,1711619447423,-154.98450155,0.00075788,7]
[320843980,1711619447433,-233.23920711,0.00075788,7]
[320843981,1711619447442,-426.01554921,0.00075788,7]
[320843982,1711619447451,-286.71145569,0.00075788,7]
[320843983,1711619447461,-155.30717843,0.00075788,7]
[320843984,1711619447470,-2287.46901775,0.00075788,7]
[320843985,1711619447479,-155.55287126,0.00075788,7]
[320843986,1711619447488,-2605.93322734,0.00075788,7]
[320843987,1711619447498,-214.77448763,0.00075788,7]
[320843988,1711619447507,-1000.0,0.00075789,120]
[320843989,1711619447516,-1529.90281301,0.00075789,30]
[320843990,1711619447531,-170.63807538,0.00075789,7]
[320843991,1711619447541,-3230.21627104,0.000758,2]
[320843992,1711619447550,-462.83333431,0.00075888,7]
[320843993,1711619447561,-383.96361824,0.00075888,7]
[320843994,1711619447570,-288.80311085,0.00075888,12]
[320843995,1711619447580,-188000.0,0.0007589,120]
[320843996,1711619447589,-3289.51095417,0.00075898,7]
[320843997,1711619447599,-1087.17436427,0.00075898,7]
[320843998,1711619447610,-252.80153193,0.00075898,7]
[320843999,1711619447619,-155.39512775,0.00075898,7]
[320844000,1711619447629,-1061.18663917,0.00075898,7]
[320844001,1711619447639,-50018.0,0.000759,120]
[320844002,1711619447648,-39732.0,0.000759,120]
[320844003,1711619447661,-500.0,0.000759,120]
[320844004,1711619447671,-260.11978043,0.00075998,7]
[320844005,1711619447680,-69948.18555706,0.00076,120]
[320844006,1711619447695,-2868.418898,0.00076,120]
[320844007,1711619447707,-3509.545865,0.00076,120]
[320844096,1711620631779,-31274.93116612,0.000711,120]
[320844098,1711620631792,-2077.16594949,0.00072899,7]
[320844101,1711620631806,-500.0,0.000729,120]
[320844103,1711620631818,-3000.0,0.0007319,120]
[320844105,1711620631829,-1699.5237975,0.00073238,2]
[320844106,1711620631846,-500.0,0.000739,120]
[320844107,1711620631858,-5929.03,0.00074667,120]
[320844108,1711620631870,-1000.0,0.00074734,120]
[320844109,1711620631883,-500.0,0.00074734,120]
[320844110,1711620631896,-384.33812116,0.00074735,61]
[320844112,1711620631907,-91156.71765784,0.00074735,2]
[320844232,1711620637806,-359.46,0.00074735,2]
[320844234,1711620637821,-12590.41504643,0.00074735,2]
[320844239,1711620637861,-5896.15122192,0.00074735,2]
[320844312,1711620643014,-443.88631464,0.00074735,2]
[320844313,1711620643072,-1535.81529314,0.00074735,2]
[320844316,1711620643200,-1804.323423,0.00074735,2]
[320844336,1711620645918,-1366.87468424,0.00074735,2]
[320844337,1711620645976,-1936.47096721,0.00074735,2]
[320844338,1711620645989,-3478.33720486,0.00074735,2]
[320844339,1711620646001,-474.17740683,0.00074735,2]
[320844394,1711621832026,-338.12156815,0.00067684,7]
[320844400,1711621832084,-1531.32778639,0.00067684,7]
[320844403,1711621832094,-497.91884988,0.00067685,30]
[320844406,1711621832104,-500.0,0.000719,120]
[320844409,1711621832114,-160.76462408,0.000729,120]
[320844413,1711621832133,-339.23537592,0.000729,120]
[320844415,1711621832143,-3000.0,0.0007307,120]
[320844418,1711621832154,-500.0,0.000739,120]
[320844421,1711621832163,-55426.98126052,0.00074,120]
[320844484,1711621838052,-40000.0,0.00074,120]
[320844485,1711621838063,-1007.44230309,0.00074,120]
[320844497,1711621841188,-5999.08730348,0.00074,120]
[320844589,1711621843139,-500.0,0.00074,120]
[320844883,1711621846439,-9166.60511881,0.00074,120]
[320844885,1711621846449,-30949.10378065,0.00074,120]
[320844887,1711621846459,-5992.136187,0.00074,2]
[320844889,1711621846468,-5808.03,0.00074532,120]
[320844891,1711621846478,-167.46939206,0.00074548,7]
[320844894,1711621846489,-187.17072048,0.00074548,7]
[320844896,1711621846507,-225.08544316,0.00074548,7]
[320844899,1711621846519,-154.98450155,0.00074548,7]
[320844901,1711621846530,-185.63812463,0.00074548,7]
[320844903,1711621846540,-173.7338918,0.00074549,120]
[320844905,1711621846549,-496.51430158,0.00074549,120]
[320844907,1711621846559,-192.16906058,0.0007455,61]
[320844909,1711621846569,-9492.69224651,0.0007455,120]
[320844912,1711621846585,-704.12,0.0007455,120]
[320844914,1711621846598,-1050.34548557,0.0007455,120]
[320845555,1711623038185,-1494.24522379,0.00069885,7]
[320845556,1711623038195,-171.99052288,0.00069886,7]
[320845557,1711623038204,-1869.44935454,0.00069886,7]
[320845558,1711623038213,-2175.02141321,0.000699,120]
[320845559,1711623038226,-897.28018034,0.000699,120]
[320845560,1711623038242,-444.84569911,0.000699,120]
[320845561,1711623038255,-3642.68260222,0.000699,120]
[320845562,1711623038275,-319.88118119,0.000699,120]
[320845582,1711623040267,-765.5500005,0.000699,120]
[320845587,1711623040355,-1754.73892343,0.000699,120]
[320845588,1711623040365,-517.0,0.0007,120]
[320845589,1711623040376,-873.63781512,0.00071899,7]
[320845590,1711623040386,-500.0,0.000719,120]
[320845591,1711623040396,-259.64407507,0.00072432,4]
[320845592,1711623040405,-3000.0,0.00072577,120]
[320845593,1711623040416,-500.0,0.000729,120]
[320845594,1711623040426,-615.55,0.000738,120]
[320845595,1711623040436,-500.0,0.000739,120]
[320845596,1711623040446,-1002.24432671,0.00073972,120]
[320845597,1711623040456,-162.44800869,0.00074432,14]
[320845598,1711623040466,-5818.22,0.00074532,120]
[320845599,1711623040475,-523.10694728,0.00074548,7]
[320845600,1711623040485,-1068.00467278,0.00074548,7]
[320845601,1711623040495,-334.15692484,0.00074548,7]
[320845602,1711623040504,-428.98249269,0.00074548,7]
[320845603,1711623040513,-192.90610468,0.00074548,7]
[320845604,1711623040523,-331.46315863,0.00074549,12]
[320845605,1711623040532,-310.46702565,0.00074549,7]
[320845606,1711623040542,-500.0,0.00074549,120]
[320845607,1711623040552,-1000.0,0.00074549,2]
[320845608,1711623040562,-1000.0,0.00074549,5]
[320845609,1711623040572,-1506.61583803,0.00074549,120]
[320845610,1711623040584,-1000.0,0.00074549,120]
[320845611,1711623040593,-192.16906056,0.0007455,61]
[320845612,1711623040603,-46954.5120706,0.0007455,120]
[320845613,1711623040615,-48223.09362819,0.0007455,120]
[320845614,1711623040628,-174.38536353,0.00074799,2]
[320845615,1711623040650,-500.0,0.00074869,120]
[320845616,1711623040666,-429.90185066,0.00074869,120]
[320845617,1711623040679,-228.75876303,0.00074869,120]
[320845618,1711623040703,-44343.51747848,0.0007487,2]
[320845619,1711623040720,-1000.0,0.00074899,8]
[320845620,1711623040729,-1000.0,0.00074899,11]
[320845621,1711623040739,-500.0,0.000749,120]
[320845622,1711623040749,-7621.0,0.000749,60]
[320845623,1711623040759,-2000.0,0.000749,120]
[320845624,1711623040769,-3307.73346008,0.00074942,2]
[320845625,1711623040778,-1000.0,0.00074969,14]
[320845626,1711623040787,-1000.0,0.00074969,17]
[320845627,1711623040798,-620.00307247,0.00074969,120]
[320845628,1711623040807,-32792.71052072,0.0007497,120]
[320845659,1711623043425,-662.77382893,0.0007455,60]
[320845660,1711623043436,-12810.20220627,0.0007497,120]
[320845661,1711623043489,-23856.73159832,0.0007497,120]
[320845662,1711623043548,-7858.46955747,0.0007497,120]
[320845663,1711623043560,-1849.47094423,0.0007497,120]
[320845672,1711623046694,-65573.51931109,0.0007497,120]
[320845673,1711623046704,-194.41095705,0.00074998,7]
[320845674,1711623046713,-150.0,0.00074999,120]
[320845675,1711623046722,-211007.26633376,0.00075,120]
[320845676,1711623046768,-11911.11500916,0.00075,120]
[320845686,1711623275148,569.47893524,0.00024,2]
[320845698,1711623993314,173.09605005,0.000219,2]
[320845699,1711623993503,173.09605005,0.000269,2]
[320845700,1711623993713,84.32896466,0.000319,2]
[320845701,1711623993741,88.76708539,0.000319,2]
[320845782,1711624232787,-1869.44935454,0.00068893,7]
[320845784,1711624232796,-171.99052288,0.00068894,7]
[320845786,1711624232806,-467.82995297,0.00068894,2]
[320845788,1711624232815,-500.0,0.000689,120]
[320845790,1711624232827,-5600.0,0.00069,120]
[320845792,1711624232836,-2926.20996857,0.000711,120]
[320845794,1711624232846,-294.3350749,0.00071337,120]
[320845797,1711624232855,-500.0,0.000719,120]
[320845801,1711624232866,-500.0,0.00072,120]
[320845804,1711624232875,-500.0,0.000729,120]
[320845807,1711624232884,-514.91,0.00073,120]
[320845810,1711624232893,-150.0,0.000738,120]
[320845811,1711624232902,-500.0,0.000739,120]
[320845813,1711624232911,-10386.2420766,0.00073973,30]
[320845814,1711624232920,-500.0,0.00073999,120]